{"text_format":"1","workbook":"xlsx","n_sheets":5,"sheets":["Instructions","Home Budget","Budget Analysis","Budget Strategy","Living Expenses Summary"],"not_rendered":{"charts":1,"images":1,"macros":0,"external_links":0,"defined_names":2,"comments":0,"pivot_tables":0},"unopened":[],"bounds":{"document_bytes":16777216,"sheet_cells":100000,"rows_first":2000,"rows_last":500,"rows_between":2000,"halvings":0,"cell_chars":16384,"cell_head_chars":4096},"cells_cut":0,"cells_raw":0,"read":"whole","date_system":"1900"}

{"sheet":"Instructions","index":0,"n_rows":43,"n_cols":2,"rows_kept":43,"cut":false,"hidden":false,"merged":[[42,1,42,10],[41,1,41,10],[36,1,36,10],[25,1,25,10],[26,1,27,10],[32,1,32,10],[33,1,35,10],[37,1,39,10],[9,1,9,10],[11,1,11,10],[13,1,13,10],[15,1,15,10],[17,1,17,10],[19,1,19,10],[21,1,21,10],[23,1,23,10],[28,1,28,10],[29,1,31,10]]}
[]
[]
[]
[]
[]
[]
[]
[]
[]
[null,"Home Budget Instructions"]
[]
[null,"1 - Enter your name and your partner's name"]
[]
[null,"2 - Enter the date"]
[]
[null,"3 - Enter all the relevant income and select the frequency of the income"]
[]
[null,"4 - Enter any other income and select its frequency"]
[]
[null,"5 - Enter all relevant savings and investments and select its frequency"]
[]
[null,"6 - Enter all relevant expenses and select its frequency"]
[]
[null,"7 - Where appropriate, you can adjust the expenses type accordingly"]
[]
[null,"Savings and Investments"]
[null,"These are any regular savings and investments that you have in place."]
[]
[null,"Fixed Expenses"]
[null,"These expenses only have minor variations and you have to pay them regardless of what happens in life."]
[]
[]
[null,"Variable Expenses"]
[null,"These expenses varies from month to month. The expenses don't usually change - other than going up."]
[]
[]
[null,"Discretionary Expenses"]
[null,"These expenses are discretionary and will be the first one to go if you need to tighten the purse strings"]
[]
[]
[]
[null,"Disclaimer notice"]
[null,"Please note that all of the information provided in this budget management is general in nature and does not take into account your personal situation. We do not guarantee the accuracy or relevance of information contained in the program and strongly recommend you seek professional financial advice before making any decisions."]

{"sheet":"Home Budget","index":1,"n_rows":129,"n_cols":19,"rows_kept":129,"cut":false,"hidden":false,"merged":[[128,0,128,6],[4,1,4,3],[3,1,3,3],[97,0,97,4],[66,0,66,4],[17,0,17,4],[120,0,120,4],[26,0,26,4],[5,1,5,3]]}
[]
["Sheridans Home Budget"]
[]
["Your Name:"]
["Your Partner's Name:"]
["Date:",null,null,null,null,null,null,null,null,null,null,null,null,null,null,null,null,"Part 1","Part 2"]
[null,null,null,null,"Use the dropdown boxes in these cells",null,"Use the dropdown box in the \"Blue\" cell below, to change the totals for any frequency you wish",null,null,null,null,null,null,null,null,null,"Weekly",52,"Per week"]
["Income","Description",null,"Amount","Frequency",null,"Monthly",null,{"$f":"VLOOKUP(G8,Q7:S11,3,FALSE)","v":"Per month"},null,null,null,null,null,null,null,"Fortnightly",26,"Per fortnight"]
["Your take home pay",null,null,0,"Fortnightly",{"$f":"IFERROR(VLOOKUP(E9,$Q$7:$R$11,2,FALSE),0)","v":26},{"$f":"+(D9*F9)/VLOOKUP($G$8,$Q$7:$R$11,2,FALSE)","v":0},null,null,null,null,null,null,null,null,null,"Monthly",12,"Per month"]
["Your partner's take home pay",null,null,0,"Fortnightly",26,0,null,null,null,null,null,null,null,null,null,"Quarterly",4,"Per quarter"]
["Bonuses/Overtime",null,null,0,"Annually",1,0,null,null,null,null,null,null,null,null,null,"Annually",1,"Per annum"]
["Savings and investments Income",null,null,0,"Monthly",12,0]
["Centrelink benefits","Pension/Allowances",null,0,"Fortnightly",26,0]
["Family benefit payments",null,null,0,"Fortnightly",26,0]
["Child support received",null,null,0,"Monthly",12,0]
["Rental Income",null,null,0,"Weekly",52,0]
["Other",null,null,0,"Monthly",12,0]
["Total Net Income",null,null,null,null,null,{"$f":"SUM(G9:G17)","v":0}]
[]
["Savings and Investments","Description",null,"Amount","Frequency",null,{"$f":"+G100","v":"Monthly"}]
["Savings","Personal savings",null,0,"Monthly",{"$f":"IFERROR(VLOOKUP(E21,$Q$7:$R$11,2,FALSE),0)","v":12},{"$f":"+(D21*F21)/VLOOKUP($G$8,$Q$7:$R$11,2,FALSE)","v":0}]
["Savings","Emergency Funds",null,0,"Monthly",12,0]
["Super","Personal Contributions",null,0,"Monthly",12,0]
["Super","Salary Sacrifice",null,0,"Monthly",12,0]
["X - Other",null,null,null,null,0,0]
["X - Other",null,null,null,null,0,0]
["Total Savings and Investments",null,null,null,null,null,{"$f":"SUM(G21:G26)","v":0}]
[]
["Fixed Expenses","Description",null,"Amount","Frequency",null,{"$f":"+G8","v":"Monthly"}]
["Car","Insurance",null,0,"Annually",{"$f":"IFERROR(VLOOKUP(E30,$Q$7:$R$11,2,FALSE),0)","v":1},{"$f":"+(D30*F30)/VLOOKUP($G$8,$Q$7:$R$11,2,FALSE)","v":0},null,"Transport"]
["Car","RAA Membership",null,0,"Annually",1,0,null,"Transport"]
["Car","Drivers Licence",null,0,"Annually",1,0,null,"Transport"]
["Car","Loan 1",null,0,"Monthly",12,0,null,"Transport"]
["Car ","Loan 2",null,0,"Monthly",12,0,null,"Transport"]
["Car ","Registration",null,0,"Quarterly",4,0,null,"Transport"]
["Children","School Fees",null,0,"Quarterly",4,0,null,"Education"]
["Children","Child Care",null,0,"Fortnightly",26,0,null,"Childcare"]
["Children","Child Support",null,0,"Monthly",12,0,null,"Other"]
["Financial","Income Protection Insurance",null,0,"Monthly",12,0,null,"Insurance"]
["Financial","Life Insurance",null,0,"Monthly",12,0,null,"Insurance"]
["Financial","TPD Insurance",null,0,"Monthly",12,0,null,"Insurance"]
["Health","Insurance",null,0,"Monthly",12,0,null,"Insurance"]
["Health","Ambulance Membership",null,0,"Monthly",12,0,null,"Insurance"]
["Home ","Contents Insurance",null,0,"Monthly",12,0,null,"Insurance"]
["Home ","Building Insurance",null,0,"Monthly",12,0,null,"Insurance"]
["Home Utilities","Gas",null,0,"Quarterly",4,0,null,"Utilities & Rates - Owner Occupied Property"]
["Home Utilities","Water",null,0,"Quarterly",4,0,null,"Utilities & Rates - Owner Occupied Property"]
["Home Utilities","Electricity",null,0,"Quarterly",4,0,null,"Utilities & Rates - Owner Occupied Property"]
["IT & Communication","Mobile",null,0,"Monthly",12,0,null,"Telephone, Internet, Pay TV & Streaming Services"]
["IT & Communication","Internet",null,0,"Monthly",12,0,null,"Telephone, Internet, Pay TV & Streaming Services"]
["Personal Loan","Loan 1",null,0,"Monthly",12,0,null,"Not relevant"]
["Personal Loan","Loan 2",null,0,"Monthly",12,0,null,"Not relevant"]
["Property ","Home Mortgage",null,0,"Monthly",12,0,null,"Not relevant"]
["Property ","Investment Mortgage",null,0,"Monthly",12,0,null,"Not relevant"]
["Property ","Land Tax",null,0,"Annually",1,0,null,"Utilities & Rates - Investment Property"]
["Property ","Body Corporate Fees",null,0,"Monthly",12,0,null,"Utilities & Rates - Owner Occupied Property"]
["Property ","Council Rates",null,0,"Quarterly",4,0,null,"Utilities & Rates - Owner Occupied Property"]
["Property ","Emergency Services Levy (ESL)",null,0,"Quarterly",{"$f":"IFERROR(VLOOKUP(E58,$Q$7:$R$11,2,FALSE),0)","v":4},{"$f":"+(D58*F58)/VLOOKUP($G$8,$Q$7:$R$11,2,FALSE)","v":0}]
["Rental Property - Utilities","Gas",null,0,"Quarterly",4,0,null,"Utilities & Rates - Investment Property"]
["Rental Property - Utilities","Water",null,0,"Quarterly",4,0,null,"Utilities & Rates - Investment Property"]
["Rental Property - Utilities","Electricity",null,0,"Quarterly",4,0,null,"Utilities & Rates - Investment Property"]
["Rent ","Real Estate",null,0,"Weekly",52,0,null,"Rent"]
["X - Other",null,null,null,null,0,0,null,"Other"]
["X - Other",null,null,null,null,0,0,null,"Other"]
["X - Other",null,null,null,null,0,0,null,"Other"]
["Buffer",null,null,null,"Monthly",12,0,null,"Other"]
["Total Fixed Expenses",null,null,null,null,null,{"$f":"SUM(G30:G66)","v":0}]
[]
["Variable Expenses","Description",null,"Amount","Frequency",null,{"$f":"+G29","v":"Monthly"}]
["Car #1","Petrol",null,0,"Weekly",{"$f":"IFERROR(VLOOKUP(E70,$Q$7:$R$11,2,FALSE),0)","v":52},{"$f":"+(D70*F70)/VLOOKUP($G$8,$Q$7:$R$11,2,FALSE)","v":0},null,"Transport"]
["Car #1","Repairs/Maintenance",null,0,"Annually",1,0,null,"Transport"]
["Car #2","Petrol",null,0,"Weekly",52,0,null,"Transport"]
["Car #2","Repairs/Maintenance",null,0,"Annually",1,0,null,"Transport"]
["Children","Baby Products",null,0,"Monthly",12,0,null,"Clothing & Personal Care"]
["Children","Baby Sitting",null,0,"Monthly",12,0,null,"Other"]
["Children","Other School Needs",null,0,"Monthly",12,0,null,"Education"]
["Children","Toys",null,0,"Monthly",12,0,null,"Other"]
["Clothing","Purchases",null,0,"Monthly",12,0,null,"Clothing & Personal Care"]
["Clothing","Dry Cleaning",null,0,"Monthly",12,0,null,"Clothing & Personal Care"]
["Clothing","Shoes and Accessories",null,0,"Monthly",12,0,null,"Clothing & Personal Care"]
["Education","Seminars/Short courses",null,0,"Annually",1,0,null,"Education"]
["Food/Supermarket","Butcher Shop",null,0,"Weekly",52,0,null,"Groceries"]
["Food/Supermarket","Cosmetic & Toiletries",null,0,"Weekly",52,0,null,"Clothing & Personal Care"]
["Food/Supermarket","Fruit Shop",null,0,"Weekly",52,0,null,"Groceries"]
["Food/Supermarket","Groceries",null,0,"Weekly",52,0,null,"Groceries"]
["Medical","Dental",null,0,"Annually",1,0,null,"Medical & Health (Excluding Health Insurance)"]
["Medical","Doctors",null,0,"Annually",1,0,null,"Medical & Health (Excluding Health Insurance)"]
["Medical","Medication",null,0,"Monthly",12,0,null,"Medical & Health (Excluding Health Insurance)"]
["Personal Care","Hairdresser ",null,0,"Quarterly",4,0,null,"Clothing & Personal Care"]
["Personal Care","Massage/Chiro/Physio",null,0,"Quarterly",4,0,null,"Clothing & Personal Care"]
["Personal Care","Gym and Sports",null,0,"Quarterly",4,0,null,"Clothing & Personal Care"]
["Phone","Home",null,0,"Monthly",12,0,null,"Telephone, Internet, Pay TV & Streaming Services"]
["Phone","Mobile 1",null,0,"Monthly",12,0,null,"Telephone, Internet, Pay TV & Streaming Services"]
["Phone","Mobile 2",null,0,"Monthly",12,0,null,"Telephone, Internet, Pay TV & Streaming Services"]
["X - Other",null,null,0,"Monthly",12,0,null,"Other"]
["X - Other",null,null,0,"Monthly",12,{"$f":"+(D96*F96)/VLOOKUP($G$8,$Q$7:$R$11,2,FALSE)","v":0},null,"Other"]
["Buffer",null,null,0,"Monthly",12,0,null,"Other"]
["Total Variable Expenses",null,null,null,null,null,{"$f":"SUM(G70:G97)","v":0}]
[]
["Discretionary Expenses","Description",null,"Amount","Frequency",null,{"$f":"+G69","v":"Monthly"}]
["Books/Newsagency/Magazines",null,null,0,"Monthly",{"$f":"IFERROR(VLOOKUP(E101,$Q$7:$R$11,2,FALSE),0)","v":12},{"$f":"+(D101*F101)/VLOOKUP($G$8,$Q$7:$R$11,2,FALSE)","v":0},null,"Recreation & Entertainment"]
["Entertainment","Dining",null,0,"Weekly",52,0,null,"Recreation & Entertainment"]
["Entertainment","Coffee & Tea",null,0,"Weekly",52,0,null,"Recreation & Entertainment"]
["Entertainment","Take away & Lunches",null,0,"Weekly",52,0,null,"Recreation & Entertainment"]
["Entertainment","Wine/Beer/Spirits",null,0,"Weekly",52,0,null,"Recreation & Entertainment"]
["Entertainment","Videos/Movies",null,0,"Monthly",12,0,null,"Recreation & Entertainment"]
["Entertainment","Pay TV",null,0,"Monthly",12,0,null,"Recreation & Entertainment"]
["Entertainment","Hobbies",null,0,"Monthly",12,0,null,"Recreation & Entertainment"]
["Entertainment","Other",null,0,"Annually",1,0,null,"Recreation & Entertainment"]
["Gifts","Christmas",null,0,"Annually",1,0,null,"Other"]
["Gifts","Charity donations",null,0,"Monthly",12,0,null,"Other"]
["Gifts","Birthdays",null,0,"Annually",1,0,null,"Other"]
["Gifts","Other",null,0,"Annually",1,0,null,"Other"]
["Holidays","Annual Holidays",null,0,"Annually",1,0,null,"Other"]
["Holidays","Special Holidays",null,0,"Annually",1,0,null,"Other"]
["Property","Furniture & Appliances",null,0,"Annually",1,0,null,"Other"]
["Property","Other",null,0,"Annually",1,0,null,"Other"]
["X - Other",null,null,0,null,0,{"$f":"+(D118*F118)/VLOOKUP($G$8,$Q$7:$R$11,2,FALSE)","v":0},null,"Other"]
["X - Other",null,null,0,null,0,0,null,"Other"]
["Buffer",null,null,0,"Monthly",12,0,null,"Other"]
["Total Discretionary Expenses",null,null,null,null,null,{"$f":"SUM(G101:G120)","v":0}]
[]
["Total Income",null,null,null,null,null,{"$f":"G18","v":0}]
["Total Savings",null,null,null,null,null,{"$f":"G27","v":0}]
["Total Expenditure",null,null,null,null,null,{"$f":"G67+G98+G121","v":0}]
["Surplus/(Shortfall)",null,null,null,null,null,{"$f":"G123-G124-G125","v":0}]
[]
["Disclaimer notice"]
["Please note that all of the information provided in this budget management is general in nature and does not take into account your personal situation. We do not guarantee the accuracy or relevance of information contained in the program and strongly recommend you seek professional financial advice before making any decisions."]

{"sheet":"Budget Analysis","index":2,"n_rows":45,"n_cols":4,"rows_kept":45,"cut":false,"hidden":true,"merged":[[4,1,4,3],[40,0,40,6],[42,0,42,6],[39,0,39,6],[44,0,44,6],[13,1,13,3]]}
["Sheridans Home Budget Analysis"]
[]
[]
[]
[null,"Budget Analysis - $"]
[null,"Actual","Target","Variance"]
["Total Income",{"$f":"+'Home Budget'!G18","v":0},0,0]
["Total Savings and Investments",{"$f":"+'Home Budget'!G27","v":0},{"$f":"$B$7*C17","v":0},{"$f":"B8-C8","v":0}]
["Total Fixed Expenses",{"$f":"+'Home Budget'!G67","v":0},{"$f":"$B$7*C18","v":0},{"$f":"C9-B9","v":0}]
["Total Variable Expenses",{"$f":"+'Home Budget'!G98","v":0},0,{"$f":"C10-B10","v":0}]
["Total Discretionary Expenses",{"$f":"+'Home Budget'!G121","v":0},0,{"$f":"C11-B11","v":0}]
["Surplus/(Deficit)",{"$f":"+B7-B9-B10-B11-B8","v":0},{"$f":"SUM(C8:C11)","v":0},{"$f":"C12-B12","v":0}]
[]
[null,"Budget Analysis - %"]
[null,"Actual","Target","Variance"]
["Total Income"]
["Total Savings and Investments",{"$f":"IFERROR(B8/$B$7,0)","v":0},0.1,{"$f":"B17-C17","v":-0.1}]
["Total Fixed Expenses",{"$f":"IFERROR(B9/$B$7,0)","v":0},0.4,{"$f":"C18-B18","v":0.4}]
["Total Variable Expenses",{"$f":"IFERROR(B10/$B$7,0)","v":0},0.3,{"$f":"C19-B19","v":0.3}]
["Total Discretionary Expenses",{"$f":"IFERROR(B11/$B$7,0)","v":0},0.2,0.2]
["Surplus/(Deficit)",{"$f":"IFERROR(B12/$B$7,0)","v":0},null,{"$f":"B21-C21","v":0}]
[]
[]
[]
[]
[]
[]
[]
[]
[]
[]
[]
[]
[]
[]
[]
[]
[]
[]
["Sheridans \"Handy Rule of Thumb\" for fixed expenses:"]
["Over 50% of your net income… \nIt may be time to review these expenses. \nAt Sheridans, we know from experience that if your Fixed Expenses exceed 50% of your net income, it will be difficult for you to pay off your home loan or debts. We are happy to  provide simple effective ways to manage these costs more effectively."]
[]
["Below 50% of your net income … are you below 50% but above 40%?\nYou are definitely on the right track. However, unexpected expenses (referred to as \"Bill Shock\"!) can easily tip this figure the wrong way. Take a closer look at those costs to see if small changes can be made to save some extra dollars....it will be worth your time and effort. If you are concerned and would like some help, please ask a professional at Sheridans."]
[]
["Below 40% of your net income… \nIf your Fixed Expenses are below 40%....this is fantastic!  \nYou should be able to find surplus money to save for something special and have money to invest for a healthy financial future.\nAt Sheridans, we have professional advisers specialising in various fields of financial advice. Our guarantee is to provide trusted advice and services to help you build a secure financial future. "]

{"sheet":"Budget Strategy","index":3,"n_rows":40,"n_cols":14,"rows_kept":40,"cut":false,"hidden":true,"merged":[[38,0,38,15],[39,0,39,15],[5,1,5,14],[29,10,29,12],[30,10,30,12],[20,13,20,14],[21,13,21,14],[35,3,35,5],[36,3,36,5],[35,7,35,9],[36,7,36,9],[33,3,33,5],[33,7,33,9],[29,1,29,2],[30,1,30,2],[29,5,29,7],[30,5,30,7],[17,13,17,14],[27,1,27,2],[27,5,27,7],[27,10,27,12],[18,13,18,14],[20,4,20,8],[19,13,19,14],[19,6,19,8],[10,2,10,4],[10,7,10,10],[18,4,18,8],[11,2,11,4],[26,1,26,2],[26,5,26,7],[26,10,26,12],[13,2,13,3],[13,7,13,8]]}
[null,"Budget Management Strategy"]
[]
[]
[]
[]
[null,"Based on the information extracted from the home budget, you can established the following budget management strategy to help you manage the flow of your cash."]
[]
[]
[]
[]
[null,null,"Joint Salary & Wages Income",null,null,null,null,"Other Income"]
[null,null,"(after tax)"]
[]
[null,null,{"$f":"+'Home Budget'!G9+'Home Budget'!G10","v":0},null,{"$f":"+'Home Budget'!I8","v":"Per month"},null,null,{"$f":"+'Home Budget'!G11+'Home Budget'!G12+'Home Budget'!G13+'Home Budget'!G14+'Home Budget'!G15+'Home Budget'!G16+'Home Budget'!G17","v":0},null,{"$f":"+'Home Budget'!I8","v":"Per month"}]
[]
[]
[]
[null,null,null,null,null,null,null,null,null,null,null,null,null,"Account 4"]
[null,null,null,null,"Loan offsett or Working Account",null,null,null,null,null,null,null,null,"Savings Account"]
[null,null,null,null,null,null,{"$f":"+'Budget Analysis'!B12","v":0},null,null,null,null,null,null,"(Ideally with different bank)"]
[null,null,null,null,"(Surplus income will accumulate here)",null,null,null,null,null,null,null,null,{"$f":"+'Home Budget'!G27","v":0}]
[null,null,null,null,null,null,null,null,null,null,null,null,null,{"$f":"+E14","v":"Per month"}]
[]
[]
[]
[]
[null,"Account 1",null,null,null,"Account 2",null,null,null,null,"Account 3"]
[null,"Fixed Expenses",null,null,null,"Variable expenses",null,null,null,null,"Discretionary Spending"]
[]
[null,{"$f":"+'Home Budget'!G67-'Budget Strategy'!D36-'Budget Strategy'!H36","v":0},null,null,null,{"$f":"+'Home Budget'!G98","v":0},null,null,null,null,{"$f":"+'Home Budget'!G121","v":0}]
[null,{"$f":"+E14","v":"Per month"},null,null,null,{"$f":"+E14","v":"Per month"},null,null,null,null,{"$f":"+E14","v":"Per month"}]
[]
[]
[null,null,null,"Home Loan",null,null,null,"Investment Loan"]
[]
[null,null,null,{"$f":"+'Home Budget'!G53","v":0},null,null,null,{"$f":"+'Home Budget'!G54","v":0}]
[null,null,null,{"$f":"+E14","v":"Per month"},null,null,null,{"$f":"+E14","v":"Per month"}]
[]
["Disclaimer notice"]
["Please note that all of the information provided in this budget management is general in nature and does not take into account your personal situation. We do not guarantee the accuracy or relevance of information contained in the program and strongly recommend you seek professional financial advice before making any decisions."]

{"sheet":"Living Expenses Summary","index":4,"n_rows":18,"n_cols":2,"rows_kept":18,"cut":false,"hidden":true,"merged":[]}
["Monthly Living Expenses"]
[]
[]
["Utilities & Rates - Owner Occupied Property",{"$f":"SUMIF('Home Budget'!I:I,'Living Expenses Summary'!A4,'Home Budget'!G:G)","v":0}]
["Utilities & Rates - Investment Property",{"$f":"SUMIF('Home Budget'!I:I,'Living Expenses Summary'!A5,'Home Budget'!G:G)","v":0}]
["Telephone, Internet, Pay TV & Streaming Services",{"$f":"SUMIF('Home Budget'!I:I,'Living Expenses Summary'!A6,'Home Budget'!G:G)","v":0}]
["Groceries",{"$f":"SUMIF('Home Budget'!I:I,'Living Expenses Summary'!A7,'Home Budget'!G:G)","v":0}]
["Recreation & Entertainment",{"$f":"SUMIF('Home Budget'!I:I,'Living Expenses Summary'!A8,'Home Budget'!G:G)","v":0}]
["Clothing & Personal Care",{"$f":"SUMIF('Home Budget'!I:I,'Living Expenses Summary'!A9,'Home Budget'!G:G)","v":0}]
["Medical & Health (Excluding Health Insurance)",{"$f":"SUMIF('Home Budget'!I:I,'Living Expenses Summary'!A10,'Home Budget'!G:G)","v":0}]
["Transport",{"$f":"SUMIF('Home Budget'!I:I,'Living Expenses Summary'!A11,'Home Budget'!G:G)","v":0}]
["Education",{"$f":"SUMIF('Home Budget'!I:I,'Living Expenses Summary'!A12,'Home Budget'!G:G)","v":0}]
["Childcare",{"$f":"SUMIF('Home Budget'!I:I,'Living Expenses Summary'!A13,'Home Budget'!G:G)","v":0}]
["Insurance",{"$f":"SUMIF('Home Budget'!I:I,'Living Expenses Summary'!A14,'Home Budget'!G:G)","v":0}]
["Other",{"$f":"SUMIF('Home Budget'!I:I,'Living Expenses Summary'!A15,'Home Budget'!G:G)","v":0}]
["Rent",{"$f":"SUMIF('Home Budget'!I:I,'Living Expenses Summary'!A16,'Home Budget'!G:G)","v":0}]
["Not Relevant",{"$f":"SUMIF('Home Budget'!I:I,'Living Expenses Summary'!A17,'Home Budget'!G:G)","v":0}]
["Total",{"$f":"SUM(B4:B17)","v":0}]